bitfinex-derivatives/quotes_BTCF0:USTF0_20210108
["timestamp","ask_amount","ask_price","bid_price","bid_amount"]
[1610086703951,0.13632608,38253.0,38247.0,0.03237854]
[1610086703952,0.57244218,38250.0,38247.0,0.14668854]
[1610086704151,0.57244218,38250.0,38248.0,0.03237713]
[1610086704352,0.57235989,38251.0,38247.0,0.11311]
[1610086704752,0.57235989,38251.0,38250.0,0.13632608]
[1610086705052,0.76304086,38252.0,38250.0,0.13632608]
[1610086705252,0.76304086,38252.0,38250.0,0.16870154]
[1610086705453,0.13632608,38253.0,38251.0,0.03237462]
[1610086706353,0.57217461,38256.0,38251.0,0.03237462]
[1610086706755,0.57205494,38258.0,38255.0,0.13632608]
[1610086707154,0.57203924,38259.0,38255.0,0.23807608]
[1610086707354,0.57203924,38259.0,38256.0,0.03237214]
[1610086707554,0.57190887,38260.0,38256.0,0.03237214]
[1610086707754,0.57188896,38259.0,38256.0,0.03237214]
[1610086708254,0.57189415,38260.0,38255.0,0.22207608]
[1610086708755,0.57174654,38261.0,38260.0,0.13632608]
[1610086708954,0.57174876,38262.0,38260.0,0.13632608]
[1610086709155,0.57174876,38262.0,38260.0,0.16869633]
[1610086709357,0.57165966,38261.0,38260.0,0.16869633]
[1610086709556,0.57165966,38261.0,38260.0,0.13632608]
[1610086709758,0.57165966,38261.0,38260.0,0.16869036]
[1610086710260,0.57156818,38262.0,38260.0,0.16279036]
[1610086710458,0.57156818,38262.0,38261.0,0.03236417]
[1610086710960,0.76162632,38263.0,38261.0,0.03236417]
[1610086711760,0.76162632,38263.0,38261.0,0.65506417]
[1610086712159,0.70769444,38264.0,38262.0,0.09648452]
[1610086712359,0.13632608,38264.0,38262.0,0.09648452]
[1610086712560,0.5712293,38266.0,38262.0,0.09648452]
[1610086712761,0.5712293,38266.0,38265.0,0.13632608]
[1610086712962,0.57117372,38268.0,38265.0,3.06122608]
[1610086713160,0.57117372,38268.0,38265.0,3.18362608]
[1610086713361,0.57117372,38268.0,38266.0,0.09647121]
[1610086713564,0.57111046,38272.0,38266.0,0.09647121]
[1610086713964,0.57082393,38276.0,38266.0,0.09647121]
[1610086714362,0.57045366,38277.0,38266.0,0.09647121]
[1610086714563,0.57045366,38277.0,38266.0,0.06411035]
[1610086714762,0.13632608,38279.0,38276.0,0.13632608]
[1610086715261,0.13632608,38279.0,38277.0,0.03234841]
[1610086715461,0.57038083,38283.0,38277.0,0.03234841]
[1610086715662,0.56995043,38286.0,38277.0,0.03234841]
[1610086715863,0.56995043,38286.0,38282.0,2.9636]
[1610086716064,0.56991657,38289.0,38282.0,2.9636]
[1610086716465,0.56950722,38292.0,38283.0,0.03234588]
[1610086716765,0.56950722,38292.0,38291.0,0.13632608]
[1610086717065,0.56950722,38292.0,38291.0,0.70268608]
[1610086717265,0.56946134,38293.0,38291.0,0.70299159]
[1610086717467,0.56946134,38293.0,38291.0,0.73502845]
[1610086717666,0.7572025,38296.0,38292.0,0.09641007]
[1610086717867,0.7572025,38296.0,38292.0,0.03234035]
[1610086718067,0.13632608,38297.0,38293.0,0.0323379]
[1610086718266,0.56895164,38298.0,38291.0,0.69718608]
[1610086718571,0.56846544,38300.0,38291.0,0.69718608]
[1610086718768,0.56846582,38302.0,38299.0,0.13632608]
[1610086719167,0.56846582,38302.0,38299.0,0.22274608]
[1610086719470,0.70464545,38305.0,38300.0,0.0003054]
[1610086719869,0.13632608,38305.0,38300.0,0.0003054]
[1610086720468,0.56790331,38303.0,38300.0,0.0003054]
[1610086720869,0.13632608,38301.0,38300.0,0.0003054]
[1610086721570,0.89157455,38301.0,38300.0,0.0003054]
[1610086721970,0.89157455,38301.0,38299.0,0.08481892]
[1610086722571,0.13632608,38301.0,38299.0,0.08481892]
[1610086723171,0.75448422,38300.0,38299.0,0.08481892]
[1610086723571,0.75448422,38300.0,38299.0,0.08512443]
[1610086724875,0.70293258,38301.0,38299.0,0.08512443]
[1610086725273,0.13632608,38301.0,38300.0,0.00030551]
[1610086726875,0.13632608,38305.0,38300.0,3.71740551]
[1610086727075,0.56602524,38311.0,38300.0,3.71740551]
[1610086727275,0.56602524,38311.0,38301.0,0.00030548]
[1610086727477,0.56568841,38314.0,38301.0,0.00030548]
[1610086727678,0.56568882,38315.0,38301.0,0.00030548]
[1610086728278,0.47140979,38312.0,38301.0,0.00030548]
[1610086728578,0.4710674,38315.0,38301.0,0.00030548]
[1610086728780,0.4710674,38315.0,38314.0,0.13632608]
[1610086728781,0.60739348,38315.0,38314.0,0.13632608]
[1610086728981,0.13632608,38315.0,38314.0,0.13632608]
[1610086729178,0.13632608,38315.0,38314.0,0.71858608]
[1610086729378,0.78497218,38327.0,38314.0,0.71858608]
[1610086729379,0.47072402,38319.0,38314.0,0.7188915]
[1610086729680,0.47072402,38319.0,38314.0,0.2189915]
[1610086729879,0.47071571,38320.0,38317.0,3.1805]
[1610086730079,0.47068225,38323.0,38317.0,3.1805]
[1610086730279,0.47068225,38323.0,38318.0,0.00030539]
[1610086730479,0.47029307,38326.0,38318.0,0.00030539]
[1610086730880,0.47029307,38326.0,38325.0,0.13632608]
[1610086731079,0.47029307,38326.0,38325.0,0.21721608]
[1610086731280,0.47029307,38326.0,38325.0,0.21752147]
[1610086731682,0.46994401,38328.0,38325.0,0.21752147]
[1610086732080,0.46992757,38330.0,38326.0,0.00030537]
[1610086732282,0.46955643,38333.0,38326.0,0.00030537]
[1610086732681,0.46952752,38336.0,38326.0,0.00030537]
[1610086732880,0.46952752,38336.0,38331.0,0.13632608]
[1610086733482,0.46952752,38336.0,38332.0,0.00030533]
[1610086733684,0.46917297,38338.0,38332.0,0.00030533]
[1610086733987,0.46917297,38338.0,38325.0,0.08089]
[1610086734385,0.46915222,38337.0,38326.0,0.00030532]
[1610086734786,0.13632608,38327.0,38326.0,0.00030532]
[1610086739195,0.42128778,38327.0,38326.0,0.00030532]
[1610086744100,0.42128778,38327.0,38325.0,0.08058468]
[1610086744501,0.42128778,38327.0,38326.0,0.03201735]
[1610086744999,0.42128778,38327.0,38324.0,0.03232475]
[1610086745200,0.42128778,38327.0,38326.0,0.00030686]
[1610086745400,0.42128778,38327.0,38324.0,0.03232444]
[1610086745801,0.42128778,38327.0,38326.0,0.00030686]
[1610086746000,0.42128778,38327.0,38326.0,0.08723]
[1610086746200,0.42128778,38327.0,38326.0,0.11955423]
[1610086747604,0.42128778,38327.0,38326.0,0.08753686]
[1610086748005,4.10828778,38327.0,38326.0,0.08753686]
[1610086748205,4.10828778,38327.0,38326.0,0.08713686]
[1610086748604,5.52491618,38327.0,38326.0,0.08713686]
[1610086749106,6.789427,38327.0,38326.0,0.00711528]
[1610086749306,6.32007265,38327.0,38326.0,0.00030686]
[1610086749807,6.32007265,38327.0,38315.0,0.03233264]
[1610086750006,6.32007265,38327.0,38326.0,0.00030693]
[1610086750206,4.10828778,38327.0,38316.0,0.00030693]
[1610086750404,4.10828778,38327.0,38315.0,0.00030693]
[1610086750605,7.10416696,38327.0,38317.0,0.00030695]
[1610086750805,0.70005692,38318.0,38317.0,0.00030695]
[1610086751104,0.70005692,38318.0,38315.0,0.00030695]
[1610086751306,1.08421591,38318.0,38314.0,0.08236]
[1610086751507,1.08421591,38318.0,38316.0,0.00030696]
[1610086751809,0.94816616,38317.0,38315.0,0.00030696]
[1610086752008,0.94816616,38317.0,38315.0,0.03202818]
[1610086752209,0.13632608,38318.0,38314.0,0.03233405]
[1610086752608,0.13632608,38318.0,38316.0,0.03233364]
[1610086752907,0.13632608,38318.0,38315.0,0.03233338]
[1610086753108,0.13632608,38318.0,38314.0,0.03233369]
[1610086753309,0.13632608,38318.0,38316.0,0.03233359]
[1610086753514,0.13632608,38318.0,38315.0,0.03233264]
[1610086753812,0.13632608,38318.0,38314.0,0.03233262]
[1610086754110,0.13632608,38318.0,38316.0,0.03233337]
[1610086754312,0.13632608,38318.0,38315.0,0.03233416]
[1610086754712,0.13632608,38318.0,38314.0,0.03233432]
[1610086754912,0.13632608,38318.0,38316.0,0.03233461]
[1610086755213,0.13632608,38318.0,38315.0,0.03233486]
[1610086755414,0.13632608,38318.0,38317.0,0.0323375]
[1610086755611,0.70116027,38318.0,38317.0,0.03203052]
[1610086755910,0.70116027,38318.0,38317.0,0.03233778]
[1610086756313,1.0853298,38318.0,38317.0,0.0320308]
[1610086756512,1.0853298,38318.0,38317.0,0.00030699]
[1610086756709,1.0853298,38318.0,38313.0,0.08107]
[1610086756710,1.0853298,38318.0,38313.0,0.07946926]
[1610086756918,0.13632608,38314.0,38313.0,0.07946926]
[1610086757113,0.13632608,38314.0,38295.0,0.20038634]
[1610086757410,0.13632608,38314.0,38313.0,0.03234035]
[1610086757611,0.13632608,38314.0,38300.0,0.03234058]
[1610086757810,0.56537286,38313.0,38295.0,0.06406026]
[1610086758010,0.13632608,38314.0,38296.0,0.03233934]
[1610086758212,1.63632608,38314.0,38296.0,0.03233934]
[1610086758412,1.63632608,38314.0,38292.0,0.03233937]
[1610086758616,0.56571325,38312.0,38297.0,0.03234152]
[1610086758912,0.13632608,38298.0,38292.0,0.03234352]
[1610086759116,0.13632608,38298.0,38269.0,0.16018625]
[1610086759314,0.13632608,38298.0,38293.0,0.03234651]
[1610086759514,0.13632608,38298.0,38293.0,0.12078651]
[1610086759714,0.13632608,38298.0,38293.0,0.08844]
[1610086759915,0.56616,38296.0,38294.0,0.03234855]
[1610086760314,0.56616836,38295.0,38260.0,0.16020735]
[1610086760612,0.56616836,38295.0,38260.0,0.19255935]
[1610086760813,0.56652787,38292.0,38260.0,0.19255935]
[1610086761114,0.13632608,38272.0,38267.0,0.13632608]
[1610086761615,0.13632608,38272.0,38268.0,0.0323527]
[1610086761816,0.13632608,38272.0,38268.0,0.1321327]
[1610086762016,0.13632608,38272.0,38268.0,0.09978]
[1610086762216,0.13632608,38272.0,38269.0,0.03235334]
[1610086762720,0.13632608,38272.0,38268.0,0.09978]
[1610086762918,0.13632608,38272.0,38271.0,0.13632608]
[1610086763120,0.56690886,38292.0,38271.0,0.13632608]
[1610086763320,0.56690886,38292.0,38272.0,0.03235375]
[1610086763721,0.56753916,38293.0,38272.0,0.03235375]
[1610086764222,0.56753498,38296.0,38271.0,0.13632608]
[1610086764522,0.56753498,38296.0,38273.0,0.03235018]
[1610086764822,0.56753498,38296.0,38274.0,0.03234773]
[1610086765026,0.70419554,38297.0,38287.0,0.22411608]
[1610086765423,0.70419554,38297.0,38288.0,0.03234639]
[1610086765624,0.13632608,38297.0,38288.0,0.03234639]
[1610086767023,0.13632608,38297.0,38293.0,0.13632608]
[1610086767325,0.13632608,38297.0,38294.0,0.03234311]
[1610086768426,0.13632608,38297.0,38293.0,0.13582608]
[1610086770628,0.56946158,38300.0,38293.0,0.13582608]
[1610086771029,0.56978034,38302.0,38299.0,0.24098608]
[1610086771432,0.70645945,38305.0,38300.0,0.03233776]
[1610086771829,0.13632608,38305.0,38300.0,0.03233776]
[1610086772131,0.57007404,38310.0,38300.0,0.03233776]
[1610086772929,0.57007404,38310.0,38309.0,0.13632608]
[1610086773132,0.57007404,38310.0,38309.0,0.25100608]
[1610086773333,0.57007404,38310.0,38309.0,0.28333897]
[1610086773733,0.57069147,38311.0,38309.0,0.28333897]
[1610086774333,0.57069147,38311.0,38310.0,0.03233281]
[1610086774533,0.38410031,38312.0,38310.0,0.03233281]
[1610086774933,0.57090118,38311.0,38310.0,0.03233281]
[1610086777235,1.26886063,38311.0,38310.0,0.03233281]
[1610086778736,2.0621438,38311.0,38310.0,0.03233281]
[1610086779535,1.49124262,38311.0,38309.0,0.11307939]
[1610086779735,2.44665409,38311.0,38309.0,0.11307939]
[1610086779937,2.44665409,38311.0,38299.0,0.10466]
[1610086780135,2.06286222,38310.0,38299.0,0.10466]
[1610086780334,2.06286222,38310.0,38300.0,0.03233714]
[1610086780735,0.69825427,38302.0,38300.0,0.14629714]
[1610086780936,0.79346689,38305.0,38301.0,0.03233776]
[1610086781435,3.4043,38315.0,38301.0,0.03233776]
[1610086781436,2.5394454,38302.0,38301.0,0.03233776]
[1610086782337,4.0394454,38302.0,38301.0,0.03233776]
[1610086782637,9.04147979,38302.0,38301.0,0.03233776]
[1610086782937,9.24957719,38302.0,38301.0,0.03233776]
[1610086783537,10.13844343,38302.0,38301.0,0.03233776]
[1610086783736,8.63844343,38302.0,38301.0,0.03233776]
[1610086784138,4.52524343,38302.0,38301.0,0.03233776]
[1610086784742,3.94888,38302.0,38301.0,0.03233776]
[1610086785442,3.06001376,38302.0,38301.0,0.03233776]
[1610086785642,2.012437,38302.0,38301.0,0.03233776]
[1610086785844,3.94901355,38302.0,38301.0,0.03233776]
[1610086786043,2.20296593,38302.0,38301.0,0.03233776]
[1610086786244,3.06033346,38302.0,38301.0,0.03233776]
[1610086786544,3.56492842,38302.0,38301.0,0.03233776]
[1610086787044,3.06034721,38302.0,38301.0,0.03233776]
[1610086788146,1.79053731,38302.0,38301.0,0.03233776]
[1610086788746,2.58397477,38302.0,38301.0,0.03233776]
[1610086788947,2.19971874,38302.0,38301.0,0.03233776]
[1610086789448,3.47265668,38302.0,38301.0,0.03233776]
[1610086790448,3.47265668,38302.0,38300.0,0.11235869]
[1610086790650,3.94881489,38302.0,38300.0,0.11235869]
[1610086790852,3.94881489,38302.0,38283.0,0.06407509]
[1610086791050,0.13632608,38288.0,38283.0,0.06407509]
[1610086791450,0.13632608,38288.0,38287.0,0.03234774]
[1610086791652,0.61244821,38288.0,38283.0,0.09642283]
[1610086791850,0.61244821,38288.0,38287.0,0.0323478]
[1610086792353,0.61244821,38288.0,38287.0,0.11281]
[1610086792552,0.61244821,38288.0,38287.0,0.14515787]
[1610086793254,0.13632608,38288.0,38287.0,0.14515787]
[1610086794757,0.61256655,38288.0,38287.0,0.14515787]
[1610086795558,1.56845026,38288.0,38287.0,0.14515787]
[1610086797060,1.56845026,38288.0,38287.0,0.28148395]
[1610086797261,0.61256655,38288.0,38287.0,0.28148395]
[1610086797759,0.61256655,38288.0,38287.0,0.14515787]
[1610086798664,1.18436978,38288.0,38287.0,0.14515787]
[1610086799063,1.56867632,38288.0,38287.0,0.14515787]
[1610086801966,2.26784547,38288.0,38287.0,0.14515787]
[1610086802366,2.84434983,38288.0,38287.0,0.14515787]
[1610086803367,2.26784547,38288.0,38287.0,0.14515787]
[1610086804068,1.56867632,38288.0,38287.0,0.14515787]
[1610086804467,2.26820449,38288.0,38287.0,0.14515787]
[1610086806168,1.56867632,38288.0,38287.0,0.14515787]
[1610086807166,1.18436978,38288.0,38287.0,0.14515787]
[1610086807467,1.56867013,38288.0,38287.0,0.14515787]
[1610086813275,2.26901187,38288.0,38287.0,0.14515787]
[1610086826693,3.06551168,38288.0,38287.0,0.14515787]
[1610086827193,2.26901187,38288.0,38287.0,0.14515787]
[1610086833597,3.06604674,38288.0,38287.0,0.14515787]
[1610086833795,3.42534783,38288.0,38287.0,0.14515787]
[1610086833996,2.62831296,38288.0,38287.0,0.14515787]
[1610086836801,3.42640054,38288.0,38287.0,0.14515787]
[1610086837101,3.04210019,38288.0,38287.0,0.14515787]
[1610086837502,3.42641998,38288.0,38287.0,0.14515787]
[1610086838604,3.2900939,38288.0,38287.0,0.14515787]
[1610086838804,1.85773041,38288.0,38287.0,0.14515787]
[1610086839207,1.05964283,38288.0,38287.0,3.41218395]
[1610086839608,0.35930109,38288.0,38287.0,3.47625612]
[1610086840005,0.70307291,38297.0,38287.0,3.47625612]
[1610086840508,0.70271848,38302.0,38288.0,0.09639795]
[1610086840908,0.70270984,38304.0,38288.0,0.09639795]
[1610086841210,0.57622654,38312.0,38303.0,0.13632608]
[1610086841211,0.70267721,38305.0,38303.0,0.13632608]
[1610086841508,0.70267721,38305.0,38303.0,0.23976608]
[1610086841808,0.70217165,38308.0,38304.0,0.03233523]
[1610086842011,0.70214331,38309.0,38304.0,0.03233523]
[1610086842210,0.70214331,38309.0,38305.0,3.6739]
[1610086842410,0.70152737,38312.0,38305.0,3.6739]
[1610086842611,0.70152737,38312.0,38306.0,0.09637361]
[1610086843111,0.79716846,38316.0,38306.0,0.09637361]
[1610086843112,0.70147024,38313.0,38306.0,0.09637361]
[1610086843310,0.70147024,38313.0,38312.0,0.25171608]
[1610086843510,0.70090593,38315.0,38312.0,0.25171608]
[1610086843810,0.70090593,38315.0,38313.0,0.03232863]
[1610086844212,0.7008537,38314.0,38313.0,0.03232863]
[1610086844611,0.70032806,38317.0,38313.0,0.03232863]
[1610086845013,0.70032071,38316.0,38313.0,0.03232863]
[1610086845414,0.69992731,38317.0,38313.0,0.03232863]
[1610086846315,0.69992041,38318.0,38313.0,0.03232863]
[1610086846916,0.69950806,38320.0,38317.0,3.7423]
[1610086847117,0.89023964,38330.0,38317.0,3.7423]
[1610086847118,0.69949364,38321.0,38317.0,3.7423]
[1610086847314,0.69949364,38321.0,38319.0,0.13632608]
[1610086847615,0.6990549,38323.0,38320.0,0.03232676]
[1610086847816,0.6990549,38323.0,38320.0,0.14136676]
[1610086848014,0.6990549,38323.0,38321.0,0.03232595]
[1610086848716,0.13632608,38325.0,38321.0,0.03232595]
[1610086849214,0.88912477,38336.0,38321.0,0.03232595]
[1610086849215,0.69863888,38327.0,38324.0,0.13632608]
[1610086849518,0.69819894,38328.0,38324.0,0.13632608]
[1610086849917,0.83453438,38329.0,38325.0,0.03232442]
[1610086850617,0.69821527,38328.0,38325.0,0.03232442]
[1610086850819,0.83415007,38329.0,38325.0,0.03232442]
[1610086851619,0.69743419,38328.0,38325.0,0.03232442]
[1610086852021,0.69743419,38328.0,38325.0,0.000308]
[1610086852022,0.6974699,38326.0,38325.0,0.000308]
[1610086852219,0.6974699,38326.0,38320.0,0.10904]
[1610086852620,0.6974699,38326.0,38325.0,0.00030801]
[1610086852821,0.13632608,38329.0,38321.0,0.00030803]
[1610086853021,0.13632608,38329.0,38325.0,0.00030803]
[1610086853222,0.13632608,38321.0,38320.0,0.10904]
[1610086853623,0.13632608,38321.0,38315.0,2.9955]
[1610086853824,0.13632608,38321.0,38320.0,0.00030802]
[1610086854022,0.13632608,38321.0,38320.0,0.09874]
[1610086854224,0.83354895,38321.0,38320.0,0.09874]
[1610086854423,0.83354895,38321.0,38320.0,0.09904802]
[1610086854626,1.6257673,38321.0,38320.0,0.09904802]
[1610086855427,0.83354895,38321.0,38320.0,0.09904802]
[1610086855827,0.13632608,38321.0,38320.0,0.09904802]
[1610086856227,0.13632608,38321.0,38320.0,0.13106585]
[1610086856428,0.83331531,38321.0,38320.0,0.13106585]
[1610086856929,0.13632608,38321.0,38320.0,0.13106585]
[1610086858634,0.13632608,38321.0,38320.0,0.13075783]
[1610086858932,0.13632608,38321.0,38320.0,0.13106583]
[1610086859431,0.13632608,38321.0,38320.0,0.26739191]
[1610086861634,0.13632608,38321.0,38320.0,0.13106583]
[1610086862434,0.60462608,38321.0,38320.0,0.13106583]
[1610086862934,1.30080012,38321.0,38320.0,0.13106583]
[1610086863437,2.80080012,38321.0,38320.0,0.13106583]
[1610086864137,2.80080012,38321.0,38320.0,0.12946536]
[1610086864536,3.59202049,38321.0,38320.0,0.12946536]
[1610086865035,3.59202049,38321.0,38320.0,0.09744753]
[1610086865440,4.47832495,38321.0,38320.0,0.09744753]
[1610086865842,4.47832495,38321.0,38320.0,0.01740657]
[1610086866040,4.47832495,38321.0,38312.0,0.11539]
[1610086866239,4.01002495,38321.0,38278.0,0.06405421]
[1610086866441,1.5,38312.0,38278.0,0.06405421]
[1610086866740,1.5,38312.0,38304.0,0.03234063]
[1610086866741,0.79158631,38307.0,38304.0,0.03234063]
[1610086866939,1.5,38306.0,38288.0,0.03234068]
[1610086867240,1.5,38306.0,38305.0,0.00030657]
[1610086867442,1.5,38306.0,38276.0,0.13632608]
[1610086867443,1.63632608,38306.0,38289.0,0.03234151]
[1610086867639,1.63632608,38306.0,38276.0,0.13632608]
[1610086867640,3.1246401,38306.0,38277.0,0.03234159]
[1610086867844,4.3008,38290.0,38277.0,0.03234159]
[1610086868140,4.3008,38290.0,38277.0,0.03203502]
[1610086868339,6.4613,38297.0,38278.0,0.08864658]
[1610086868540,1.5,38300.0,38278.0,0.08834]
[1610086868742,1.5,38300.0,38279.0,0.00030658]
[1610086869044,4.3757,38280.0,38279.0,0.03234179]
[1610086869342,4.51202608,38280.0,38279.0,0.03234179]
[1610086871344,4.51202608,38280.0,38279.0,0.03203521]
[1610086871845,4.51202608,38280.0,38279.0,0.0323418]
[1610086872945,4.51202608,38280.0,38279.0,0.03203521]
[1610086873146,4.51202608,38280.0,38279.0,0.0323418]
[1610086873846,0.13632608,38280.0,38279.0,0.0323418]
[1610086874049,4.3452,38297.0,38279.0,0.0323418]
[1610086875349,4.3452,38297.0,38295.0,0.13632608]
[1610086875546,4.3452,38297.0,38295.0,0.24900608]
[1610086875747,4.3452,38297.0,38295.0,0.11268]
[1610086875949,4.3452,38297.0,38296.0,0.03233488]
[1610086877452,4.48152608,38297.0,38296.0,0.03233488]
[1610086888864,0.13632608,38297.0,38296.0,0.03233488]
[1610086897876,0.83498052,38297.0,38296.0,0.03233488]
[1610086903182,4.13008052,38297.0,38296.0,0.03233488]
[1610086904082,3.43142608,38297.0,38296.0,0.03233488]
[1610086904282,0.13632608,38297.0,38296.0,0.03233488]
[1610086904883,0.69831067,38303.0,38296.0,0.03233488]
[1610086905283,0.69823866,38308.0,38296.0,0.03233488]
[1610086905684,0.69825307,38310.0,38302.0,0.13632608]
[1610086906087,0.69824345,38311.0,38303.0,0.03233173]
[1610086906285,0.69824345,38311.0,38303.0,0.14341173]
[1610086906588,0.69830623,38312.0,38303.0,0.14341173]
[1610086906885,4.99325186,38315.0,38304.0,0.03232861]
[1610086907188,4.295,38315.0,38304.0,0.03232861]
[1610086907685,4.295,38315.0,38306.0,0.13632608]
[1610086908084,0.69822292,38317.0,38307.0,0.03232793]
[1610086908286,0.69830589,38316.0,38307.0,0.03232793]
[1610086908586,0.69837067,38318.0,38307.0,0.03232793]
[1610086909487,0.69848196,38319.0,38307.0,0.03232793]
[1610086909688,0.13632608,38311.0,38307.0,0.03232793]
[1610086911688,0.13632608,38311.0,38310.0,0.13632608]
[1610086912089,0.13632608,38311.0,38310.0,0.16865157]
[1610086916894,0.18392242,38321.0,38310.0,0.16865157]
[1610086917096,0.18392242,38321.0,38310.0,3.82315157]
[1610086917296,0.18392242,38321.0,38311.0,0.03232085]
[1610086917797,0.18392242,38321.0,38320.0,0.13632608]
[1610086917997,0.18392242,38321.0,38320.0,0.22830608]
[1610086918198,0.18392242,38321.0,38320.0,0.26062116]
[1610086918399,0.18392242,38321.0,38320.0,0.24522116]
[1610086919601,1.11042699,38350.0,38320.0,0.24522116]
[1610086919602,0.6977808,38336.0,38320.0,0.30923443]
[1610086920002,0.13632608,38337.0,38321.0,0.03231241]
[1610086921602,0.13632608,38337.0,38336.0,0.13632608]
[1610086922304,0.13632608,38337.0,38336.0,0.27471302]
[1610086922803,0.69654547,38346.0,38336.0,0.27471302]
[1610086923003,0.69654547,38346.0,38336.0,4.52091302]
[1610086923406,0.69654547,38346.0,38337.0,0.03230439]
[1610086923607,0.83287155,38346.0,38345.0,0.13632608]
[1610086923806,0.13632608,38346.0,38345.0,0.13632608]
[1610086924106,0.13632608,38346.0,38345.0,0.28206734]
[1610086925207,0.13632608,38346.0,38345.0,0.14574126]
[1610086926208,0.13632608,38346.0,38345.0,0.11374659]
[1610086928513,0.13632608,38346.0,38345.0,0.10564]
[1610086929213,0.5559,38344.0,38336.0,0.10608]
[1610086929413,0.5559,38344.0,38330.0,3.739]
[1610086929614,0.13632608,38346.0,38337.0,0.00030662]
[1610086929813,3.4589,38339.0,38337.0,0.09053]
[1610086930015,0.69374331,38349.0,38337.0,0.09053]
[1610086930313,0.69374331,38349.0,38338.0,0.00030665]
[1610086930514,0.69376781,38346.0,38338.0,0.00030665]
[1610086930916,0.6936324,38349.0,38338.0,0.00030665]
[1610086931415,0.69348656,38351.0,38338.0,0.00030665]
[1610086931715,0.13632608,38339.0,38338.0,0.00030665]
[1610086932416,0.13632608,38339.0,38338.0,0.0323077]
[1610086933421,0.69331894,38355.0,38338.0,0.0323077]
[1610086933818,1.27927515,38372.0,38338.0,0.0323077]
[1610086933819,0.69311904,38358.0,38347.0,0.13632608]
[1610086934019,0.69311904,38358.0,38348.0,0.03230415]
[1610086934219,0.69312191,38360.0,38348.0,0.03230415]
[1610086934618,0.88211221,38370.0,38348.0,0.03230415]
[1610086934619,0.69286759,38361.0,38348.0,0.03230415]
[1610086934818,2.9695,38359.0,38348.0,0.03230415]
[1610086935820,0.13632608,38349.0,38348.0,0.03230415]
[1610086938423,0.13632608,38349.0,38347.0,0.08751]
[1610086939124,0.13632608,38349.0,38343.0,0.13632608]
[1610086939625,0.13632608,38349.0,38344.0,0.03230167]
[1610086939925,0.13632608,38349.0,38348.0,0.13632608]
[1610086940126,0.13632608,38349.0,38348.0,0.16862813]
[1610086940327,0.13632608,38349.0,38348.0,0.24983813]
[1610086948938,0.69119168,38369.0,38348.0,0.24983813]
[1610086949437,0.69114972,38370.0,38349.0,0.09627633]
[1610086949736,0.69114972,38370.0,38366.0,0.13632608]
[1610086950040,0.69111987,38375.0,38366.0,0.25180608]
[1610086950239,0.69111987,38375.0,38367.0,0.03229172]
[1610086950437,0.69102418,38380.0,38367.0,0.03229172]
[1610086950837,0.69092535,38382.0,38367.0,0.03229172]
[1610086951339,0.69087777,38383.0,38367.0,0.03229172]
[1610086951739,0.78506697,38387.0,38367.0,0.03229172]
[1610086951740,0.69070444,38385.0,38380.0,0.13632608]
[1610086951939,0.69070444,38385.0,38380.0,0.21861608]
[1610086952139,0.69068968,38386.0,38380.0,0.2508981]
[1610086952539,0.69053684,38389.0,38380.0,0.2508981]
[1610086952941,0.69051491,38392.0,38380.0,0.2508981]
[1610086953441,0.69046446,38394.0,38380.0,0.2508981]
[1610086953842,0.13632608,38394.0,38393.0,0.13632608]
[1610086954046,0.69021838,38397.0,38393.0,0.23357608]
[1610086954242,0.69019617,38402.0,38393.0,0.26585115]
[1610086954644,0.68977219,38408.0,38393.0,0.26585115]
[1610086954843,0.68977219,38408.0,38394.0,0.03227286]
[1610086955043,0.6897379,38409.0,38394.0,0.03227286]
[1610086955445,0.68930194,38412.0,38394.0,0.03227286]
[1610086955845,0.68927658,38413.0,38409.0,0.13632608]
[1610086956348,0.68912361,38417.0,38410.0,0.00030622]
[1610086956548,0.68854592,38424.0,38410.0,0.00030622]
[1610086956947,0.68847819,38427.0,38410.0,0.00030622]
[1610086957446,0.68786109,38430.0,38410.0,0.00030622]
[1610086957846,0.68784331,38431.0,38426.0,0.13632608]
[1610086958146,0.68773215,38434.0,38426.0,0.24810608]
[1610086958548,0.01936721,38441.0,38426.0,0.23210608]
[1610086959847,0.01936721,38441.0,38435.0,0.13632608]
[1610086960247,0.01936721,38441.0,38436.0,0.00030606]
[1610086960747,0.01936721,38441.0,38435.0,0.21336608]
[1610086961849,0.01936721,38441.0,38439.0,0.13632608]
[1610086962747,0.01936721,38441.0,38439.0,0.12032608]
[1610086964552,0.01936721,38441.0,38439.0,0.11322608]
[1610086965052,0.68252687,38478.0,38439.0,0.11322608]
[1610086965653,0.68173545,38482.0,38439.0,0.11322608]
[1610086965851,0.68173545,38482.0,38473.0,0.13632608]
[1610086966052,0.68162291,38483.0,38473.0,0.21757608]
[1610086966452,0.68085001,38485.0,38473.0,0.21598112]
[1610086966854,0.68084952,38486.0,38473.0,0.21598112]
[1610086967254,0.68083497,38489.0,38473.0,0.21598112]
[1610086967554,0.68001804,38492.0,38473.0,0.21598112]
[1610086967854,0.13632608,38474.0,38473.0,0.21598112]
[1610086968659,0.13632608,38474.0,38473.0,0.19998112]
[1610086970562,0.13632608,38474.0,38473.0,0.19898112]
[1610086971763,0.13632608,38474.0,38473.0,0.08125]
[1610086971963,0.13632608,38474.0,38456.0,0.13632608]
[1610086972163,0.13632608,38474.0,38436.0,0.2723]
[1610086972378,3.362,38471.0,38436.0,0.2723]
[1610086973965,3.362,38471.0,38440.0,0.13632608]
[1610086974262,3.362,38471.0,38436.0,0.2723]
[1610086974463,0.10422,38480.0,38435.0,0.09304]
[1610086974665,3.8594,38460.0,38435.0,0.09304]
[1610086974964,3.8594,38460.0,38412.0,3.144]
[1610086975562,0.11881,38472.0,38410.0,0.2708]
[1610086975766,0.11881,38472.0,38383.0,0.2982]
[1610086975964,0.13632608,38411.0,38383.0,0.2982]
[1610086976364,3.5421,38414.0,38382.0,0.2745]
[1610086976566,3.5421,38414.0,38384.0,0.00030601]
[1610086977567,0.67713767,38469.0,38384.0,0.00030601]
[1610086977970,4.0609,38461.0,38423.0,0.22627608]
[1610086978670,4.0609,38461.0,38423.0,0.21027608]
[1610086978969,4.0609,38461.0,38424.0,0.000306]
[1610086979869,4.0609,38461.0,38433.0,0.13632608]
[1610086980368,4.0609,38461.0,38433.0,0.25242608]
[1610086980570,4.0609,38461.0,38433.0,0.23642608]
[1610086981869,0.13632608,38434.0,38433.0,0.23642608]
[1610086982269,0.13632608,38434.0,38433.0,0.23673472]
[1610086982772,0.13632608,38434.0,38433.0,0.22073472]
[1610086983472,4.0609,38461.0,38433.0,0.22073472]
[1610086983672,0.10422,38480.0,38433.0,0.22073472]
[1610086983875,3.9108,38481.0,38443.0,0.13632608]
[1610086984172,3.9108,38481.0,38443.0,0.22579608]
[1610086984473,3.9108,38481.0,38444.0,0.0003086]
[1610086984673,3.9108,38481.0,38443.0,0.20979608]
[1610086985973,3.9108,38481.0,38447.0,0.13632608]
[1610086986374,3.9108,38481.0,38448.0,0.00030856]
[1610086987373,0.67721763,38488.0,38448.0,0.00030856]